[Event "73rd ARM-chW Highest League 2018"]
[Site "Yerevan"]
[Date "2018.01.14"]
[Round "3"]
[White "Mkrtchyan, Mariam"]
[Black "Asatryan, Sona"]
[Result "1-0"]
[ECO "E18"]
[WhiteElo "1834"]
[BlackElo "2111"]
[Annotator "ChessBase"]
[PlyCount "123"]
[EventDate "2018.??.??"]
[EventType "tourn"]
[EventCountry "ARM"]
[SourceTitle "playchess.com"]
[Source "ChessBase"]
[SourceQuality "1"]
[TimeControl "40/5400+30:1800+30"]

1. d4 {[%emt 0:00:00]} Nf6 {[%emt 0:00:14]} 2. Nf3 {[%emt 0:00:00]} e6 {[%emt 0:00:05]} 3. c4 {[%emt 0:00:00]} b6 {[%emt 0:00:05]} 4. g3 {[%emt 0:00:19]} Bb7 {[%emt 0:00:04]} 5. Bg2 {[%emt 0:00:13]} Be7 {[%emt 0:00:08]} 6. O-O {[%emt 0:00:11]} O-O {[%emt 0:00:17]} 7. Nc3 {[%emt 0:00:13]} Ne4 {[%emt 0:00:05]} 8. Nxe4 {[%emt 0:01:15]} Bxe4 {[%emt 0:00:04]} 9. Ne1 {[%emt 0:00:09]} Bxg2 {[%emt 0:00:06]} 10. Nxg2 {[%emt 0:00:05]} d5 {[%emt 0:00:46]} 11. Qa4 {[%emt 0:01:21]} dxc4 {[%emt 0:01:07]} 12. Qxc4 {[%emt 0:00:07]} c5 {[%emt 0:00:12]} 13. dxc5 {[%emt 0:00:17]} Bxc5 {[%emt 0:00:16]} 14. Be3 {[%emt 0:00:15]} Bxe3 {[%emt 0:11:19]} 15. Nxe3 {[%emt 0:00:22]} Qc8 {[%emt 0:02:48]} 16. Qxc8 {[%emt 0:05:58]} Rxc8 {[%emt 0:00:40]} 17. Rac1 {[%emt 0:00:08]} Na6 {[%emt 0:03:31]} 18. Rfd1 {[%emt 0:00:43]} Kf8 {[%emt 0:00:44]} 19. Kf1 {[%emt 0:05:18]} Ke7 {[%emt 0:02:13]} 20. Ke1 {[%emt 0:00:29]} h5 {[%emt 0:06:16]} 21. h4 {[%emt 0:03:23]} b5 {[%emt 0:07:04]} 22. Nc2 {[%emt 0:11:19]} Nc5 {[%emt 0:05:51]} 23. Nd4 {[%emt 0:04:25]} a6 {[%emt 0:02:08]} 24. b3 {[%emt 0:04:44]} g6 {[%emt 0:03:17]} 25. Rc2 {[%emt 0:17:11]} e5 {[%emt 0:05:41]} 26. Rdc1 {[%emt 0:02:34]} exd4 {[%emt 0:03:25]} 27. Rxc5 {[%emt 0:00:07]} Rxc5 {[%emt 0:03:28]} 28. Rxc5 {[%emt 0:00:18]} Kd6 {[%emt 0:02:51]} 29. Rc2 {[%emt 0:03:32]} Re8 {[%emt 0:13:32]} 30. Kd2 {[%emt 0:01:57]} Re5 {[%emt 0:03:39]} 31. Rc8 {[%emt 0:09:58]} Rf5 {[%emt 0:05:10]} 32. f4 {[%emt 0:04:36]} Rf6 {[%emt 0:03:46]} 33. Kd3 {[%emt 0:07:17]} Kd7 {[%emt 0:02:53]} 34. Rc5 {[%emt 0:01:58]} Rd6 {[%emt 0:02:17]} 35. Re5 {[%emt 0:09:06]} f5 {[%emt 0:01:33]} 36. Rc5 {[%emt 0:01:05]} Ke7 {[%emt 0:05:14]} 37. a4 {[%emt 0:02:19]} bxa4 {[%emt 0:03:43]} 38. bxa4 {[%emt 0:00:01]} Rb6 {[%emt 0:01:21]} 39. Kxd4 {[%emt 0:00:45]} Kd6 {[%emt 0:01:03]} 40. Rd5+ {[%emt 0:00:00]} Ke6 {[%emt 0:00:51]} 41. Kc5 {[%emt 0:14:32]} Rb3 {[%emt 0:01:09]} 42. Rd3 {[%emt 0:00:06]} Rb2 {[%emt 0:00:27]} 43. Rd6+ {[%emt 0:06:15]} Kf7 {[%emt 0:00:18]} 44. Rxa6 {[%emt 0:00:09]} Rxe2 {[%emt 0:01:15]} 45. Ra7+ {[%emt 0:00:17]} Ke6 {[%emt 0:05:31]} 46. a5 {[%emt 0:00:42]} Rg2 {[%emt 0:02:06]} 47. a6 {[%emt 0:00:21]} Kf6 {[%emt 0:02:22]} 48. Ra8 {[%emt 0:05:59]} Kg7 {[%emt 0:02:07]} 49. Rd8 {[%emt 0:01:56]} Ra2 {[%emt 0:00:47]} 50. Kb6 {[%emt 0:00:03]} Rb2+ {[%emt 0:00:29]} 51. Kc7 {[%emt 0:01:48]} Rc2+ {[%emt 0:00:27]} 52. Kb7 {[%emt 0:00:01]} Rb2+ {[%emt 0:00:07]} 53. Ka8 {[%emt 0:00:11]} Rb3 {[%emt 0:00:59]} 54. Rb8 {[%emt 0:01:47]} Rxg3 {[%emt 0:00:15]} 55. a7 {[%emt 0:00:15]} g5 {[%emt 0:01:06]} 56. Kb7 {[%emt 0:00:58]} Rb3+ {[%emt 0:01:17]} 57. Kc7 {[%emt 0:00:17]} Ra3 {[%emt 0:00:24]} 58. a8=Q {[%emt 0:00:37]} Rxa8 {[%emt 0:00:08]} 59. Rxa8 {[%emt 0:00:02]} gxf4 {[%emt 0:01:06]} 60. Kd6 {[%emt 0:00:09]} Kf6 {[%emt 0:00:16]} 61. Rf8+ {[%emt 0:00:10]} Kg6 {[%emt 0:00:07]} 62. Ke5 {[%emt 0:00:02]} 1-0

[Event "73rd ARM-chW Highest League 2018"]
[Site "Yerevan"]
[Date "2018.01.14"]
[Round "3"]
[White "Arakelyan, Nare"]
[Black "Gevorgyan, Maria"]
[Result "0-1"]
[ECO "B30"]
[WhiteElo "1747"]
[BlackElo "2258"]
[Annotator "ChessBase"]
[PlyCount "140"]
[EventDate "2018.??.??"]
[EventType "tourn"]
[EventCountry "ARM"]
[SourceTitle "playchess.com"]
[Source "ChessBase"]
[SourceQuality "1"]
[TimeControl "40/5400+30:1800+30"]

1. e4 {[%emt 0:00:00]} c5 {[%emt 0:00:13]} 2. Nf3 {[%emt 0:00:00]} Nc6 {[%emt 0:01:09]} 3. Bb5 {[%emt 0:00:00]} e6 {[%emt 0:01:22]} 4. O-O {[%emt 0:00:22]} Nge7 {[%emt 0:00:12]} 5. d4 {[%emt 0:04:40]} cxd4 {[%emt 0:00:05]} 6. Nxd4 {[%emt 0:00:02]} a6 {[%emt 0:00:36]} 7. Be2 {[%emt 0:05:28]} Qc7 {[%emt 0:05:46]} 8. c4 {[%emt 0:03:00]} Nxd4 {[%emt 0:17:59]} 9. Qxd4 {[%emt 0:00:09]} Nc6 {[%emt 0:00:08]} 10. Qc3 {[%emt 0:06:39]} b6 {[%emt 0:06:51]} 11. Be3 {[%emt 0:05:14]} Bb7 {[%emt 0:00:51]} 12. Nd2 {[%emt 0:03:50]} Rg8 {[%emt 0:10:18]} 13. a3 {[%emt 0:10:57]} Bd6 {[%emt 0:03:46]} 14. f4 {[%emt 0:03:42]} g5 {[%emt 0:12:24]} 15. Qf6 {[%emt 0:09:59]} Be7 {[%emt 0:16:12]} 16. Qc3 {[%emt 0:08:37]} Bd6 {[%emt 0:03:47]} 17. Qf6 {[%emt 0:07:36]} Be7 {[%emt 0:00:01]} 18. Qc3 {[%emt 0:08:29]} O-O-O {[%emt 0:01:49]} 19. b4 {[%emt 0:01:08]} gxf4 {[%emt 0:02:33]} 20. Bxf4 {[%emt 0:00:50]} Bd6 {[%emt 0:00:00]} 21. Bxd6 {[%emt 0:01:17]} Qxd6 {[%emt 0:00:02]} 22. Rxf7 {[%emt 0:01:46]} Nd4 {[%emt 0:00:00]} 23. Bf1 {[%emt 0:03:58]} Qe5 {[%emt 0:00:12]} 24. Rc1 {[%emt 0:01:27]} Rg4 {[%emt 0:06:07]} 25. Kh1 {[%emt 0:02:31]} Bxe4 {[%emt 0:00:44]} 26. Nxe4 {[%emt 0:00:07]} Qxe4 {[%emt 0:00:14]} 27. Qe1 {[%emt 0:03:43]} Qg6 {[%emt 0:00:51]} 28. Rf2 {[%emt 0:00:14]} Rh4 {[%emt 0:03:24]} 29. Qe3 {[%emt 0:04:25]} Rg8 30. Rc3 {[%emt 0:02:45]} Re4 {[%emt 0:04:50]} 31. Qd2 {[%emt 0:00:33]} Qg5 {[%emt 0:00:59]} 32. Rg3 {[%emt 0:01:07]} Rg4 {[%emt 0:01:04]} 33. Qxg5 {[%emt 0:00:33]} R4xg5 {[%emt 0:00:08]} 34. Rh3 {[%emt 0:00:32]} h5 {[%emt 0:00:49]} 35. Rf7 {[%emt 0:00:27]} Re5 {[%emt 0:00:11]} 36. Kg1 {[%emt 0:00:32]} Rgg5 {[%emt 0:00:54]} 37. Rd3 {[%emt 0:00:30]} Rgf5 {[%emt 0:01:12]} 38. Rxf5 {[%emt 0:00:41]} Nxf5 {[%emt 0:00:01]} 39. Kf2 {[%emt 0:00:20]} Kc7 {[%emt 0:01:09]} 40. Be2 {[%emt 0:00:00]} Nd6 {[%emt 0:00:14]} 41. Rh3 {[%emt 0:04:43]} Ne4+ {[%emt 0:01:04]} 42. Kf1 {[%emt 0:01:40]} Nf6 {[%emt 0:00:17]} 43. Rf3 {[%emt 0:02:08]} Ng4 {[%emt 0:00:28]} 44. Rh3 {[%emt 0:01:20]} Rf5+ {[%emt 0:07:42]} 45. Ke1 {[%emt 0:02:19]} Kd6 {[%emt 0:03:50]} 46. Rd3+ {[%emt 0:02:27]} Ke7 {[%emt 0:01:28]} 47. h3 {[%emt 0:00:04]} Nf6 {[%emt 0:01:25]} 48. Rd4 {[%emt 0:02:48]} e5 {[%emt 0:01:22]} 49. Rh4 {[%emt 0:00:31]} e4 {[%emt 0:00:08]} 50. Kd2 {[%emt 0:01:32]} Kd6 {[%emt 0:01:14]} 51. Ke3 {[%emt 0:02:24]} Ke5 {[%emt 0:00:03]} 52. g3 {[%emt 0:03:56]} d6 {[%emt 0:12:34]} 53. Rf4 {[%emt 0:07:03]} Rxf4 {[%emt 0:02:16]} 54. gxf4+ {[%emt 0:00:03]} Kf5 {[%emt 0:00:02]} 55. Bd1 {[%emt 0:00:53]} d5 {[%emt 0:02:19]} 56. cxd5 {[%emt 0:00:11]} Nxd5+ {[%emt 0:00:09]} 57. Kd4 {[%emt 0:00:05]} Nxf4 {[%emt 0:00:08]} 58. Bc2 {[%emt 0:01:32]} Ne2+ {[%emt 0:00:05]} 59. Ke3 {[%emt 0:01:06]} Ng3 {[%emt 0:00:05]} 60. a4 {[%emt 0:00:56]} a5 {[%emt 0:00:13]} 61. bxa5 {[%emt 0:00:39]} bxa5 {[%emt 0:00:01]} 62. Bb1 {[%emt 0:00:56]} Ke5 {[%emt 0:00:06]} 63. Bc2 {[%emt 0:01:25]} Nf5+ {[%emt 0:00:06]} 64. Ke2 {[%emt 0:00:44]} Nd4+ {[%emt 0:00:07]} 65. Kd2 {[%emt 0:00:32]} Nxc2 {[%emt 0:01:23]} 66. Kxc2 {[%emt 0:00:03]} Kf4 {[%emt 0:00:04]} 67. Kd2 {[%emt 0:00:30]} Kf3 {[%emt 0:00:05]} 68. Ke1 {[%emt 0:00:17]} e3 {[%emt 0:00:09]} 69. Kf1 {[%emt 0:00:49]} e2+ {[%emt 0:00:05]} 70. Ke1 {[%emt 0:00:04]} h4 {[%emt 0:00:03]} 0-1

[Event "73rd ARM-chW Highest League 2018"]
[Site "Yerevan"]
[Date "2018.01.15"]
[Round "4"]
[White "Galojan, Lilit"]
[Black "Gaboyan, Susanna"]
[Result "0-1"]
[ECO "D33"]
[WhiteElo "2300"]
[BlackElo "2168"]
[Annotator "RC"]
[PlyCount "106"]
[EventDate "2018.??.??"]
[EventType "tourn"]
[EventCountry "ARM"]
[SourceTitle "playchess.com"]
[Source "ChessBase"]
[SourceQuality "1"]
[TimeControl "40/5400+30:1800+30"]

1. c4 {[%emt 0:00:00]} e6 {[%emt 0:04:20]} 2. d4 {[%emt 0:02:03]} d5 {[%emt 0:00:11]} 3. Nc3 {[%emt 0:02:49]} c5 {[%emt 0:00:25]} 4. cxd5 {[%emt 0:00:09]} exd5 {[%emt 0:00:04]} 5. Nf3 {[%emt 0:00:09]} Nc6 {[%emt 0:00:07]} 6. g3 {[%emt 0:03:55]} c4 {[%emt 0:00:37]} 7. Bg2 {[%emt 0:00:24]} Bb4 {[%emt 0:00:23]} 8. O-O {[%emt 0:00:26]} Nge7 {[%emt 0:00:21]} 9. a3 {[%emt 0:07:51]} Ba5 {[%emt 0:01:00]} 10. b4 {[%emt 0:04:48]} Bb6 {[%emt 0:09:07]} 11. Ra2 {[%emt 0:16:49]} Bg4 {[%emt 0:06:09]} 12. Rd2 {[%emt 0:02:47]} O-O {[%emt 0:01:07]} 13. Ne1 {[%emt 0:05:17]} Qd7 {[%emt 0:04:36]} 14. Nc2 {[%emt 0:02:21]} Rad8 {[%emt 0:03:45]} 15. Re1 {[%emt 0:09:48]} Bh3 {[%emt 0:09:15]} 16. Bh1 {[%emt 0:09:52]} f5 {[%emt 0:02:39]} 17. e3 {[%emt 0:04:58]} Rf6 {[%emt 0:10:03]} 18. a4 {[%emt 0:00:58]} Bc7 {[%emt 0:02:58]} 19. b5 {[%emt 0:05:20]} Na5 {[%emt 0:01:26]} 20. Ba3 {[%emt 0:00:05]} Bg4 {[%emt 0:05:21]} 21. Rde2 {[%emt 0:02:38]} Bxe2 {[%emt 0:01:33]} 22. Qxe2 {[%emt 0:00:47]} Bd6 {[%emt 0:02:55]} 23. Nxd5 {[%emt 0:00:40]} Rff8 {[%emt 0:02:38]} 24. Bxd6 {[%emt 0:08:25]} Qxd6 {[%emt 0:00:19]} 25. Nc3 {[%emt 0:05:41]} Kh8 {[%emt 0:01:35]} 26. Rd1 {[%emt 0:00:57]} Rfe8 {[%emt 0:05:18]} 27. d5 {[%emt 0:01:22]} Rd7 {[%emt 0:05:30]} 28. Qh5 {[%emt 0:01:55]} g6 {[%emt 0:02:38]} 29. Qh4 {[%emt 0:00:15]} Qe5 {[%emt 0:00:53]} 30. Qd4 {[%emt 0:00:54]} Qxd4 {[%emt 0:02:48]} 31. Rxd4 {[%emt 0:00:21]} Nc8 {[%emt 0:00:28]} 32. f3 {[%emt 0:00:25]} Nd6 {[%emt 0:01:57]} 33. Rd1 {[%emt 0:00:28]} Nb3 {[%emt 0:00:46]} 34. Kf2 {[%emt 0:00:22]} Rde7 {[%emt 0:00:54]} 35. Bg2 {[%emt 0:00:15]} a6 {[%emt 0:03:07]} 36. Bf1 {[%emt 0:00:20]} Kg7 {[%emt 0:03:09]} 37. Be2 {[%emt 0:01:13]} Nc5 {[%emt 0:01:41]} 38. Rd4 {[%emt 0:00:33]} Rc8 {[%emt 0:01:49]} 39. Na3 {[%emt 0:00:35]} Nb3 {[%emt 0:00:39]} 40. Rd1 {[%emt 0:00:00]} g5 {[%emt 0:03:06]} 41. Nc2 {[%emt 0:09:15]} h5 {[%emt 0:01:26]} 42. h4 {[%emt 0:04:53]} gxh4 {[%emt 0:07:31]} 43. gxh4 {[%emt 0:00:03]} Kf6 {[%emt 0:00:11]} 44. Rg1 {[%emt 0:05:00]} Rg7 {[%emt 0:00:28]} 45. Rxg7 {[%emt 0:00:15]} Kxg7 {[%emt 0:00:07]} 46. bxa6 {[%emt 0:00:15]} bxa6 {[%emt 0:00:13]} 47. e4 {[%emt 0:00:06]} Kf6 {[%emt 0:01:54]} 48. Ke3 {[%emt 0:03:27]} Re8 {[%emt 0:04:27]} 49. Nb4 {[%emt 0:06:06]} fxe4 {[%emt 0:07:21]} 50. fxe4 {[%emt 0:00:34]} Nc5 {[%emt 0:00:08]} 51. Bf3 {[%emt 0:01:36]} Nf5+ {[%emt 0:05:11]} 52. Kf4 {[%emt 0:00:06]} a5 {[%emt 0:00:27]} 53. d6 {[%emt 0:03:29]} Ne6# {[%emt 0:01:54]} 0-1

[Event "73rd ARM-chW Highest League 2018"]
[Site "Yerevan"]
[Date "2018.01.15"]
[Round "4"]
[White "Gevorgyan, Maria"]
[Black "Mkrtchyan, Mariam"]
[Result "0-1"]
[ECO "B10"]
[WhiteElo "2258"]
[BlackElo "1834"]
[Annotator "RC"]
[PlyCount "184"]
[EventDate "2018.??.??"]
[EventType "tourn"]
[EventCountry "ARM"]
[SourceTitle "playchess.com"]
[Source "ChessBase"]
[SourceQuality "1"]
[TimeControl "40/5400+30:1800+30"]

1. e4 {[%emt 0:03:18]} c6 {[%emt 0:00:11]} 2. f4 {[%emt 0:00:04]} d5 {[%emt 0:00:26]} 3. e5 {[%emt 0:00:08]} c5 {[%emt 0:03:36]} 4. c3 {[%emt 0:00:17]} Nc6 {[%emt 0:00:33]} 5. Nf3 {[%emt 0:00:52]} Bg4 {[%emt 0:02:38]} 6. Be2 {[%emt 0:01:36]} e6 {[%emt 0:00:27]} 7. d3 {[%emt 0:01:46]} Nh6 {[%emt 0:05:58]} 8. O-O {[%emt 0:04:33]} Nf5 {[%emt 0:01:27]} 9. Na3 {[%emt 0:00:05]} Be7 {[%emt 0:03:20]} 10. Nc2 {[%emt 0:00:13]} O-O {[%emt 0:01:34]} 11. Ne3 {[%emt 0:00:27]} Nxe3 {[%emt 0:04:35]} 12. Bxe3 {[%emt 0:00:09]} d4 {[%emt 0:12:01]} 13. Bf2 {[%emt 0:05:08]} dxc3 {[%emt 0:05:28]} 14. bxc3 {[%emt 0:00:11]} Qd7 {[%emt 0:01:54]} 15. h3 {[%emt 0:10:00]} Bf5 {[%emt 0:02:56]} 16. Nh4 {[%emt 0:05:53]} Bxh4 {[%emt 0:03:56]} 17. Bxh4 {[%emt 0:00:10]} h6 {[%emt 0:00:45]} 18. Kh2 {[%emt 0:02:34]} Ne7 {[%emt 0:02:27]} 19. Rf3 {[%emt 0:04:03]} Nd5 {[%emt 0:04:57]} 20. Qd2 {[%emt 0:00:40]} b5 {[%emt 0:06:00]} 21. Rg1 {[%emt 0:00:26]} b4 {[%emt 0:07:42]} 22. c4 {[%emt 0:15:22]} Nc3 {[%emt 0:02:41]} 23. g4 {[%emt 0:03:36]} Bh7 {[%emt 0:01:22]} 24. Bf1 {[%emt 0:01:04]} Qd4 {[%emt 0:09:08]} 25. Rg2 {[%emt 0:06:32]} Rac8 {[%emt 0:02:41]} 26. Qe1 {[%emt 0:07:52]} Rfe8 {[%emt 0:02:19]} 27. Bf2 {[%emt 0:04:54]} Qd7 {[%emt 0:00:28]} 28. Be3 {[%emt 0:00:06]} Kh8 {[%emt 0:01:53]} 29. Bc1 {[%emt 0:02:01]} Na4 {[%emt 0:02:16]} 30. h4 {[%emt 0:01:41]} Rf8 {[%emt 0:03:44]} 31. Rfg3 {[%emt 0:02:44]} Qd4 {[%emt 0:03:57]} 32. Be3 {[%emt 0:04:42]} Qc3 {[%emt 0:00:08]} 33. Qd1 {[%emt 0:00:23]} Nb2 {[%emt 0:01:51]} 34. Qb1 {[%emt 0:00:06]} Nxd3 {[%emt 0:00:57]} 35. f5 {[%emt 0:06:33]} Nxe5 {[%emt 0:00:55]} 36. Bg1 {[%emt 0:00:54]} Nxg4+ {[%emt 0:00:35]} 37. Rxg4 {[%emt 0:00:36]} Bxf5 {[%emt 0:00:04]} 38. Qd1 {[%emt 0:00:03]} Bxg4 {[%emt 0:00:23]} 39. Qxg4 {[%emt 0:00:01]} Qe5+ {[%emt 0:00:24]} 40. Kh1 {[%emt 0:00:00]} Rfd8 {[%emt 0:01:08]} 41. Bh2 {[%emt 0:03:15]} Qf6 {[%emt 0:08:26]} 42. Rg1 {[%emt 0:00:11]} Rd4 {[%emt 0:00:37]} 43. Qg3 {[%emt 0:02:56]} Rxh4 {[%emt 0:02:40]} 44. Bd3 {[%emt 0:01:09]} Rd4 {[%emt 0:02:17]} 45. Qe3 {[%emt 0:00:44]} Rcd8 {[%emt 0:03:14]} 46. Be2 {[%emt 0:00:55]} Qh4 {[%emt 0:06:06]} 47. Rg2 {[%emt 0:00:46]} Qe1+ {[%emt 0:02:50]} 48. Rg1 {[%emt 0:00:17]} Qh4 {[%emt 0:00:06]} 49. Rg2 {[%emt 0:00:04]} Re4 {[%emt 0:04:20]} 50. Qf3 {[%emt 0:00:07]} Qe1+ {[%emt 0:00:49]} 51. Bf1 {[%emt 0:00:05]} f5 {[%emt 0:01:21]} 52. Rg1 {[%emt 0:00:15]} Qc3 {[%emt 0:01:15]} 53. Qh5 {[%emt 0:00:21]} Qf6 {[%emt 0:00:49]} 54. Rg6 {[%emt 0:00:22]} Rh4 {[%emt 0:01:13]} 55. Rxf6 {[%emt 0:00:16]} Rxh5 {[%emt 0:00:01]} 56. Rxe6 {[%emt 0:00:13]} Rd1 {[%emt 0:00:16]} 57. Kg2 {[%emt 0:00:09]} Rxh2+ {[%emt 0:00:29]} 58. Kxh2 {[%emt 0:00:01]} Rxf1 {[%emt 0:00:01]} 59. Rc6 {[%emt 0:00:07]} Rf2+ {[%emt 0:00:09]} 60. Kg3 {[%emt 0:00:01]} Rxa2 {[%emt 0:00:07]} 61. Rxc5 {[%emt 0:00:04]} b3 {[%emt 0:01:37]} 62. Rb5 {[%emt 0:00:52]} Rc2 {[%emt 0:00:04]} 63. Kf4 {[%emt 0:01:01]} Rxc4+ {[%emt 0:00:31]} 64. Kxf5 {[%emt 0:00:02]} Kh7 {[%emt 0:00:42]} 65. Rxb3 {[%emt 0:00:06]} a5 {[%emt 0:00:27]} 66. Rb6 {[%emt 0:00:10]} a4 {[%emt 0:00:24]} 67. Ra6 {[%emt 0:00:04]} h5 {[%emt 0:00:13]} 68. Kg5 {[%emt 0:00:05]} h4 {[%emt 0:00:04]} 69. Rd6 {[%emt 0:00:43]} Rb4 {[%emt 0:02:13]} 70. Rd3 {[%emt 0:00:44]} Kg8 {[%emt 0:01:00]} 71. Kg6 {[%emt 0:00:05]} Rg4+ {[%emt 0:00:41]} 72. Kh5 {[%emt 0:00:29]} Rc4 {[%emt 0:00:56]} 73. Kg6 {[%emt 0:00:07]} Kf8 {[%emt 0:00:19]} 74. Rf3+ {[%emt 0:00:20]} Ke7 {[%emt 0:00:03]} 75. Kxg7 {[%emt 0:00:06]} Rg4+ {[%emt 0:00:44]} 76. Kh6 {[%emt 0:00:05]} Kd6 {[%emt 0:00:03]} 77. Kh5 {[%emt 0:00:35]} Rc4 {[%emt 0:00:08]} 78. Rf8 {[%emt 0:00:51]} Kc5 {[%emt 0:00:23]} 79. Rb8 {[%emt 0:00:04]} h3 {[%emt 0:01:15]} 80. Kg5 {[%emt 0:00:04]} a3 {[%emt 0:00:34]} 81. Rc8+ {[%emt 0:01:38]} Kb4 {[%emt 0:00:13]} 82. Rb8+ {[%emt 0:00:13]} Ka4 {[%emt 0:00:23]} 83. Ra8+ {[%emt 0:00:42]} Kb3 {[%emt 0:00:04]} 84. Rb8+ {[%emt 0:00:02]} Kc2 {[%emt 0:00:49]} 85. Ra8 {[%emt 0:00:25]} Rc3 {[%emt 0:00:09]} 86. Kg4 {[%emt 0:00:05]} Kb2 {[%emt 0:00:04]} 87. Rb8+ {[%emt 0:02:39]} Rb3 {[%emt 0:00:07]} 88. Re8 {[%emt 0:00:35]} a2 {[%emt 0:00:25]} 89. Re2+ {[%emt 0:00:05]} Ka3 {[%emt 0:00:09]} 90. Re1 {[%emt 0:00:04]} Rb1 {[%emt 0:00:11]} 91. Re3+ {[%emt 0:00:03]} Kb4 {[%emt 0:00:11]} 92. Re4+ {[%emt 0:00:12]} Kc5 {[%emt 0:00:02]} 0-1

[Event "73rd ARM-chW Highest League 2018"]
[Site "Yerevan"]
[Date "2018.01.15"]
[Round "4"]
[White "Kursova, Maria"]
[Black "Arakelyan, Nare"]
[Result "1-0"]
[ECO "E68"]
[WhiteElo "2249"]
[BlackElo "1747"]
[Annotator "NA RC"]
[PlyCount "55"]
[EventDate "2018.??.??"]
[EventType "tourn"]
[EventCountry "ARM"]
[SourceTitle "playchess.com"]
[Source "ChessBase"]
[SourceQuality "1"]
[TimeControl "40/5400+30:1800+30"]

1. d4 {[%emt 0:00:00]} Nf6 {[%emt 0:00:08]} 2. Nf3 {[%emt 0:00:00]} g6 {[%emt 0:00:19]} 3. c4 {[%emt 0:00:00]} Bg7 {[%emt 0:00:12]} 4. g3 {[%emt 0:00:10]} O-O {[%emt 0:00:09]} 5. Bg2 {[%emt 0:00:07]} d6 {[%emt 0:00:12]} 6. Nc3 {[%emt 0:00:20]} Nbd7 {[%emt 0:00:17]} 7. O-O {[%emt 0:00:25]} e5 {[%emt 0:00:54]} 8. e4 {[%emt 0:01:10]} exd4 {[%emt 0:00:12]} 9. Nxd4 {[%emt 0:00:06]} Re8 {[%emt 0:00:11]} 10. h3 {[%emt 0:09:54]} a6 {[%emt 0:00:28]} 11. Be3 {[%emt 0:05:30]} Rb8 {[%emt 0:00:20]} 12. b3 {[%emt 0:12:45]} c5 {[%emt 0:09:21]} 13. Nde2 {[%emt 0:00:30] E68: King's Indian: Fianchetto: 6...Nbd7 7 0-0 e5 8 e4} b5 $1 {[%emt 0:12:36]} 14. Qxd6 {[%emt 0:03:58]} b4 {[%emt 0:00:06]} 15. Na4 {[%emt 0:01:12]} Nxe4 {[%emt 0:01:35]} 16. Bxe4 {[%emt 0:00:45]} Bxa1 {[%emt 0:04:15]} (16... Rxe4 17. Rad1 Qe8 18. Nxc5 Rxe3 19. Nxd7 Rxe2 20. Nxb8 Bxh3 {½-½ (35) Grischuk,A (2779)-Mamedyarov,S (2753) Khanty-Mansiysk 2013}) 17. Rxa1 {[%emt 0:00:35]} Rxe4 {[%emt 0:01:27] LiveBook: 12 Games} 18. Nxc5 {[%emt 0:01:36]} Re8 {[%emt 0:22:18]} 19. Rd1 {[%emt 0:02:03]} Qa5 {[%emt 0:02:16]} 20. Nxd7 {[%emt 0:14:38]} Bxd7 {[%emt 0:00:18]} 21. Qxd7 {[%emt 0:00:28]} Qxa2 {[%emt 0:12:26]} 22. Qd3 {[%emt 0:11:47]} a5 $2 {[%emt 0:05:06]} (22... Qb2 23. Nf4 Qc3) 23. Nf4 {[%emt 0:01:03]} a4 $146 {[%emt 0:04:01]} ({Predecessor:} 23... Red8 24. Nd5 a4 25. Qd4 a3 26. Ne7+ {1-0 (26) Terekhov,A (2322)-Raykhman,A (2262) Munich 2008}) 24. Nd5 {[%emt 0:00:26]} Re6 {[%emt 0:06:22]} 25. Qd4 {[%emt 0:18:26]} Qxb3 {[%emt 0:03:46]} 26. Bh6 {[%emt 0:05:17]} f6 {[%emt 0:00:18] [#]} 27. Qa7 {[%emt 0:00:58]} Qxd1+ {[%emt 0:06:13]} 28. Kh2 {[%emt 0:00:18]} 1-0

[Event "73rd ARM-chW Highest League 2018"]
[Site "Yerevan"]
[Date "2018.01.15"]
[Round "4"]
[White "Asatryan, Sona"]
[Black "Ghukasyan, Siranush"]
[Result "1/2-1/2"]
[ECO "C84"]
[WhiteElo "2111"]
[BlackElo "2166"]
[Annotator "NA RC"]
[PlyCount "90"]
[EventDate "2018.??.??"]
[EventType "tourn"]
[EventCountry "ARM"]
[SourceTitle "playchess.com"]
[Source "ChessBase"]
[SourceQuality "1"]
[TimeControl "40/5400+30:1800+30"]

1. e4 {[%emt 0:00:00]} e5 {[%emt 0:00:49]} 2. Nf3 {[%emt 0:00:00]} Nc6 {[%emt 0:00:05]} 3. Bb5 {[%emt 0:00:00]} a6 {[%emt 0:00:04]} 4. Ba4 {[%emt 0:00:00]} Nf6 {[%emt 0:00:07]} 5. O-O {[%emt 0:00:00]} Be7 {[%emt 0:00:03]} 6. d3 {[%emt 0:00:07]} b5 {[%emt 0:00:04]} 7. Bb3 {[%emt 0:00:04]} d6 {[%emt 0:00:04]} 8. a3 {[%emt 0:00:10]} O-O {[%emt 0:00:07]} 9. Nc3 {[%emt 0:00:14]} Be6 {[%emt 0:00:07] C77: Ruy Lopez: 3...a6 4 Ba4 Nf6, unusual lines} (9... Bg4 10. Be3 Nd4 11. Bxd4 exd4 12. Nd5 Nxd5 13. Bxd5 Rc8 14. Bc6 Bf6 15. a4 Rb8 16. h3 Be6 17. axb5 axb5 18. Qd2 {½-½ (31) Caruana,F (2799)-Aronian,L (2805) London 2017}) 10. Nd5 {[%emt 0:01:08]} Nd4 {[%emt 0:00:08]} 11. Nxd4 {[%emt 0:00:19]} exd4 {[%emt 0:00:06]} 12. Nxe7+ {[%emt 0:01:50]} Qxe7 {[%emt 0:00:08]} 13. Bg5 {[%emt 0:00:10]} Bxb3 {[%emt 0:05:24]} 14. cxb3 {[%emt 0:00:07]} Qe6 {[%emt 0:00:41]} 15. f4 {[%emt 0:05:32]} Nd7 {[%emt 0:02:56]} 16. f5 {[%emt 0:09:19]} Qe5 {[%emt 0:00:06]} 17. Qc1 {[%emt 0:01:55]} Qc5 $146 {[%emt 0:32:43]} 18. b4 {[%emt 0:24:38]} Qxc1 {[%emt 0:00:28]} 19. Raxc1 {[%emt 0:00:29]} Rfc8 {[%emt 0:03:17]} 20. Bf4 {[%emt 0:02:40]} Kf8 {[%emt 0:05:57]} 21. Rc6 {[%emt 0:03:41]} Ke7 {[%emt 0:00:41]} 22. Rfc1 {[%emt 0:02:57]} Kd8 {[%emt 0:00:25]} 23. Kf2 {[%emt 0:01:56]} a5 {[%emt 0:03:36]} 24. bxa5 {[%emt 0:07:49]} Nc5 {[%emt 0:00:25]} 25. R6xc5 {[%emt 0:01:42]} dxc5 {[%emt 0:00:06]} 26. Rxc5 {[%emt 0:00:24]} Rxa5 {[%emt 0:00:45]} 27. Be5 {[%emt 0:05:18]} Ra4 {[%emt 0:05:13]} 28. Rd5+ {[%emt 0:07:08]} Ke8 {[%emt 0:01:42]} 29. Bxd4 {[%emt 0:05:28]} c6 {[%emt 0:01:19]} 30. Re5+ {[%emt 0:02:02]} Kd7 {[%emt 0:00:40]} 31. Bc5 {[%emt 0:02:11]} Re8 {[%emt 0:00:18]} 32. Rxe8 {[%emt 0:00:14]} Kxe8 {[%emt 0:00:01]} 33. Ke3 {[%emt 0:03:02]} Ra8 {[%emt 0:01:39]} 34. Kf4 {[%emt 0:02:42]} Kd7 {[%emt 0:02:00]} 35. g4 {[%emt 0:02:28]} f6 {[%emt 0:00:48]} (35... Re8 $16) 36. h4 {[%emt 0:02:31]} Ke8 {[%emt 0:00:23]} 37. g5 {[%emt 0:02:25]} Kf7 {[%emt 0:00:34]} 38. b3 {[%emt 0:01:27]} fxg5+ {[%emt 0:03:41]} 39. hxg5 {[%emt 0:01:18]} g6 {[%emt 0:00:13] [#]} 40. d4 {[%emt 0:00:00]} (40. e5 $1 $18 {[%cal Re5e6]} gxf5 41. Kxf5) 40... gxf5 {[%emt 0:00:29]} 41. Kxf5 {[%emt 0:03:13]} ({Viel schwächer wäre} 41. exf5 Re8 $11) 41... Re8 $18 {[%emt 0:00:45]} (41... Rg8 $16 42. e5 Re8) 42. Bb4 {[%emt 0:02:04]} Rd8 {[%emt 0:06:56]} 43. Bc5 {[%emt 0:01:07]} Re8 {[%emt 0:00:07]} 44. Bb6 {[%emt 0:01:12]} Ra8 {[%emt 0:00:16]} 45. Bc5 {[%emt 0:00:06]} Re8 1/2-1/2